[Event "Early-Titled-Tuesday-Blitz-July-09-2024"]
[Site "Chess.com"]
[Date "2024.07.09"]
[Round "8"]
[White "RCone"]
[Black "luggevoila"]
[Result "0-1"]
[WhiteElo "2417"]
[BlackElo "2329"]
[TimeControl "180+1"]
[EndTime "9:29:49 PDT"]
[Termination "luggevoila won on time"]

1. e4 {[%clk 0:02:56.2]} 1... e5 {[%clk 0:02:59.5]} 2. Bc4 {[%clk 0:02:52.3]}
2... Nf6 {[%clk 0:02:58.8]} 3. Nc3 {[%clk 0:02:52.7]} 3... Bc5 {[%clk
0:02:57.8]} 4. d3 {[%clk 0:02:52.3]} 4... O-O {[%clk 0:02:56.5]} 5. Nge2 {[%clk
0:02:46.4]} 5... c6 {[%clk 0:02:52.3]} 6. Bg5 {[%clk 0:02:43.2]} 6... Bxf2+
{[%clk 0:02:41.5]} 7. Kxf2 {[%clk 0:02:43.1]} 7... Ng4+ {[%clk 0:02:40.9]} 8.
Kg1 {[%clk 0:02:11.5]} 8... Qxg5 {[%clk 0:02:38.5]} 9. Qc1 {[%clk 0:02:10.8]}
9... Qf6 {[%clk 0:02:16.7]} 10. Qf1 {[%clk 0:02:01]} 10... Qxf1+ {[%clk
0:02:14]} 11. Rxf1 {[%clk 0:02:00.9]} 11... Ne3 {[%clk 0:02:13.4]} 12. Rc1
{[%clk 0:02:00.5]} 12... Nxc4 {[%clk 0:02:06.4]} 13. dxc4 {[%clk 0:02:01.4]}
13... d6 {[%clk 0:02:05.4]} 14. Rd1 {[%clk 0:02:00.7]} 14... Be6 {[%clk
0:01:53.8]} 15. b3 {[%clk 0:02:00.3]} 15... Nd7 {[%clk 0:01:41.8]} 16. Rxd6
{[%clk 0:01:58.8]} 16... Nf6 {[%clk 0:01:37]} 17. Kf2 {[%clk 0:01:51.8]} 17...
Rfd8 {[%clk 0:01:31.4]} 18. Rhd1 {[%clk 0:01:51]} 18... Rxd6 {[%clk 0:01:31.4]}
19. Rxd6 {[%clk 0:01:50.7]} 19... Kf8 {[%clk 0:01:32.1]} 20. h3 {[%clk 0:01:43]}
20... Ke7 {[%clk 0:01:32]} 21. Rd2 {[%clk 0:01:40.1]} 21... a5 {[%clk
0:01:31.3]} 22. a4 {[%clk 0:01:39]} 22... Nd7 {[%clk 0:01:30.2]} 23. Ke3 {[%clk
0:01:36.6]} 23... f6 {[%clk 0:01:24.6]} 24. g4 {[%clk 0:01:36.4]} 24... Rh8
{[%clk 0:01:03.6]} 25. Ng3 {[%clk 0:01:35.1]} 25... g6 {[%clk 0:01:03.1]} 26.
Rf2 {[%clk 0:01:22.5]} 26... Nc5 {[%clk 0:00:53.8]} 27. Nd1 {[%clk 0:01:20.4]}
27... Bd7 {[%clk 0:00:40.9]} 28. Nb2 {[%clk 0:01:20.3]} 28... Ne6 {[%clk
0:00:38]} 29. Nd3 {[%clk 0:01:14.8]} 29... Nd4 {[%clk 0:00:36.3]} 30. Nc5 {[%clk
0:01:05]} 30... Bc8 {[%clk 0:00:29.1]} 31. c3 {[%clk 0:01:05.2]} 31... Ne6
{[%clk 0:00:27.8]} 32. Nxe6 {[%clk 0:01:04.4]} 32... Bxe6 {[%clk 0:00:28.4]} 33.
Rd2 {[%clk 0:00:58.2]} 33... Rb8 {[%clk 0:00:27.2]} 34. Rb2 {[%clk 0:00:38.7]}
34... b5 {[%clk 0:00:24.2]} 35. axb5 {[%clk 0:00:32.3]} 35... cxb5 {[%clk
0:00:24.2]} 36. c5 {[%clk 0:00:17.2]} 36... b4 {[%clk 0:00:21]} 37. c4 {[%clk
0:00:17.2]} 37... Kd7 {[%clk 0:00:17.5]} 38. Rd2+ {[%clk 0:00:14.7]} 38... Kc7
{[%clk 0:00:16.8]} 39. Rd6 {[%clk 0:00:15.1]} 39... Bxc4 {[%clk 0:00:13.8]} 40.
bxc4 {[%clk 0:00:11.3]} 40... b3 {[%clk 0:00:14.1]} 41. Ne2 {[%clk 0:00:10.8]}
41... b2 {[%clk 0:00:13.2]} 42. Nc3 {[%clk 0:00:11.4]} 42... Rb3 {[%clk
0:00:12]} 0-1

[Event "Early-Titled-Tuesday-Blitz-July-09-2024"]
[Site "Chess.com"]
[Date "2024.07.09"]
[Round "8"]
[White "gau248"]
[Black "ural58"]
[Result "1/2-1/2"]
[WhiteElo "2612"]
[BlackElo "2436"]
[TimeControl "180+1"]
[EndTime "9:29:51 PDT"]
[Termination "Game drawn by repetition"]

1. e4 {[%clk 0:03:00.9]} 1... d5 {[%clk 0:02:56.4]} 2. exd5 {[%clk 0:02:58.2]}
2... Qxd5 {[%clk 0:02:56.1]} 3. d4 {[%clk 0:02:58.4]} 3... Nc6 {[%clk
0:02:55.6]} 4. Nf3 {[%clk 0:02:56]} 4... Bg4 {[%clk 0:02:55.3]} 5. Nc3 {[%clk
0:02:55.6]} 5... Qf5 {[%clk 0:02:47]} 6. Be2 {[%clk 0:02:53.8]} 6... O-O-O
{[%clk 0:02:46.9]} 7. Be3 {[%clk 0:02:53.6]} 7... e6 {[%clk 0:02:26.6]} 8. O-O
{[%clk 0:02:46.7]} 8... Bb4 {[%clk 0:02:24.8]} 9. h3 {[%clk 0:02:45.8]} 9...
Bxf3 {[%clk 0:02:23.3]} 10. Bxf3 {[%clk 0:02:45.4]} 10... Nge7 {[%clk 0:02:23]}
11. a3 {[%clk 0:02:44.1]} 11... Bxc3 {[%clk 0:02:22.8]} 12. bxc3 {[%clk
0:02:45]} 12... Nd5 {[%clk 0:02:21.1]} 13. c4 {[%clk 0:02:44.9]} 13... Nxe3
{[%clk 0:02:20.6]} 14. fxe3 {[%clk 0:02:45.8]} 14... Qg5 {[%clk 0:02:19.3]} 15.
Qe1 {[%clk 0:02:39.9]} 15... Ne7 {[%clk 0:02:11.6]} 16. Rb1 {[%clk 0:02:40.1]}
16... c6 {[%clk 0:02:09.5]} 17. a4 {[%clk 0:02:39.1]} 17... Rd7 {[%clk
0:02:08.7]} 18. a5 {[%clk 0:02:39]} 18... a6 {[%clk 0:02:08.6]} 19. Rb6 {[%clk
0:02:36.5]} 19... Rhd8 {[%clk 0:02:06.7]} 20. Rf2 {[%clk 0:02:32.4]} 20... Rc7
{[%clk 0:02:05.2]} 21. c3 {[%clk 0:02:31]} 21... Nf5 {[%clk 0:01:55.7]} 22. Re2
{[%clk 0:02:28.3]} 22... Nh4 {[%clk 0:01:50.4]} 23. Bg4 {[%clk 0:02:23.4]} 23...
f5 {[%clk 0:01:45.9]} 24. g3 {[%clk 0:02:14]} 24... fxg4 {[%clk 0:01:45.5]} 25.
gxh4 {[%clk 0:02:14.3]} 25... Qxa5 {[%clk 0:01:46.1]} 26. Reb2 {[%clk 0:02:12]}
26... gxh3 {[%clk 0:01:45]} 27. Qg3 {[%clk 0:02:10.9]} 27... Qxc3 {[%clk
0:01:39.9]} 28. c5 {[%clk 0:02:07.2]} 28... Rxd4 {[%clk 0:01:28.3]} 29. Qxc7+
{[%clk 0:01:03.4]} 29... Kxc7 {[%clk 0:01:27.2]} 30. Rxb7+ {[%clk 0:01:03]}
30... Kd8 {[%clk 0:01:27.8]} 31. exd4 {[%clk 0:00:59.9]} 31... Qxd4+ {[%clk
0:01:27.2]} 32. Kh2 {[%clk 0:00:59.4]} 32... Qxc5 {[%clk 0:01:23.8]} 33. Rd2+
{[%clk 0:00:45.4]} 33... Ke8 {[%clk 0:01:22.8]} 34. Rdd7 {[%clk 0:00:37.6]}
34... Qf2+ {[%clk 0:00:42.1]} 35. Kxh3 {[%clk 0:00:36.9]} 35... Qf3+ {[%clk
0:00:42.7]} 36. Kh2 {[%clk 0:00:36]} 36... e5 {[%clk 0:00:42.7]} 37. Re7+ {[%clk
0:00:23.4]} 37... Kf8 {[%clk 0:00:41.6]} 38. Rec7 {[%clk 0:00:23.4]} 38... Qf4+
{[%clk 0:00:38]} 39. Kh3 {[%clk 0:00:19.7]} 39... Qf5+ {[%clk 0:00:36.6]} 40.
Kh2 {[%clk 0:00:19.8]} 40... Qf2+ {[%clk 0:00:33]} 41. Kh3 {[%clk 0:00:20]}
41... Qf5+ {[%clk 0:00:21.1]} 42. Kh2 {[%clk 0:00:20]} 42... Qc2+ {[%clk
0:00:11.1]} 43. Kh3 {[%clk 0:00:17.9]} 43... Qc3+ {[%clk 0:00:11.1]} 44. Kh2
{[%clk 0:00:16.8]} 44... Qd2+ {[%clk 0:00:11.2]} 45. Kh3 {[%clk 0:00:17]} 45...
Qe3+ {[%clk 0:00:11.3]} 46. Kh2 {[%clk 0:00:16.9]} 46... Qf4+ {[%clk 0:00:10.9]}
47. Kh3 {[%clk 0:00:17.1]} 47... Qf5+ {[%clk 0:00:10.3]} 1/2-1/2

[Event "Early-Titled-Tuesday-Blitz-July-09-2024"]
[Site "Chess.com"]
[Date "2024.07.09"]
[Round "8"]
[White "vikber19611"]
[Black "kritipatel"]
[Result "1-0"]
[WhiteElo "1755"]
[BlackElo "2114"]
[TimeControl "180+1"]
[EndTime "9:29:51 PDT"]
[Termination "vikber19611 won by checkmate"]

1. e4 {[%clk 0:03:00.9]} 1... e5 {[%clk 0:02:59.4]} 2. Nf3 {[%clk 0:02:57.9]}
2... Nc6 {[%clk 0:02:59.8]} 3. Bb5 {[%clk 0:02:56.8]} 3... a6 {[%clk 0:02:59.6]}
4. Ba4 {[%clk 0:02:56.8]} 4... Nf6 {[%clk 0:02:59.4]} 5. O-O {[%clk 0:02:56.4]}
5... b5 {[%clk 0:02:59.4]} 6. Bb3 {[%clk 0:02:55.5]} 6... Bc5 {[%clk 0:02:59.8]}
7. c3 {[%clk 0:02:48.8]} 7... d6 {[%clk 0:02:59.1]} 8. d4 {[%clk 0:02:43.6]}
8... Bb6 {[%clk 0:02:58.2]} 9. Re1 {[%clk 0:02:26.4]} 9... O-O {[%clk
0:02:55.5]} 10. h3 {[%clk 0:02:16.4]} 10... h6 {[%clk 0:02:54.3]} 11. d5 {[%clk
0:02:12.2]} 11... Ne7 {[%clk 0:02:53.9]} 12. Nbd2 {[%clk 0:02:09.4]} 12... Ng6
{[%clk 0:02:52.8]} 13. Nf1 {[%clk 0:02:05.1]} 13... Nh5 {[%clk 0:02:38.9]} 14.
a4 {[%clk 0:01:55.5]} 14... Rb8 {[%clk 0:02:36.6]} 15. axb5 {[%clk 0:01:54.2]}
15... axb5 {[%clk 0:02:35.6]} 16. Be3 {[%clk 0:01:36.6]} 16... Ngf4 {[%clk
0:02:32.9]} 17. Bxb6 {[%clk 0:01:28]} 17... Rxb6 {[%clk 0:02:33.8]} 18. Kh2
{[%clk 0:01:27.3]} 18... Qf6 {[%clk 0:02:28.8]} 19. g4 {[%clk 0:01:16.6]} 19...
Nxh3 {[%clk 0:02:00.3]} 20. Kxh3 {[%clk 0:01:13]} 20... Nf4+ {[%clk 0:01:59.6]}
21. Kg3 {[%clk 0:01:07.3]} 21... Qg5 {[%clk 0:01:59]} 22. Nxg5 {[%clk
0:00:59.7]} 22... hxg5 {[%clk 0:01:24.4]} 23. Ra8 {[%clk 0:00:56.5]} 23... b4
{[%clk 0:01:15.9]} 24. c4 {[%clk 0:00:53.2]} 24... Kh7 {[%clk 0:01:09.7]} 25.
Ne3 {[%clk 0:00:50.8]} 25... Kg6 {[%clk 0:01:07.2]} 26. Nf5 {[%clk 0:00:44.2]}
26... Rh8 {[%clk 0:01:05.6]} 27. Rh1 {[%clk 0:00:39.5]} 27... Re8 {[%clk
0:00:48.5]} 28. Rxc8 {[%clk 0:00:34.6]} 28... Rxc8 {[%clk 0:00:48.1]} 29. Ne7+
{[%clk 0:00:33.9]} 29... Kf6 {[%clk 0:00:48.2]} 30. Nxc8 {[%clk 0:00:33.4]}
30... Rb8 {[%clk 0:00:47.6]} 31. Na7 {[%clk 0:00:31]} 31... Ra8 {[%clk
0:00:45.1]} 32. Nc6 {[%clk 0:00:29.9]} 32... g6 {[%clk 0:00:44.1]} 33. Nxb4
{[%clk 0:00:29]} 33... Rb8 {[%clk 0:00:42.9]} 34. Nd3 {[%clk 0:00:28.2]} 34...
Nxd3 {[%clk 0:00:38]} 35. Qxd3 {[%clk 0:00:27.6]} 35... Rf8 {[%clk 0:00:37.3]}
36. Ra1 {[%clk 0:00:26.7]} 36... Rc8 {[%clk 0:00:35.2]} 37. Qf3+ {[%clk
0:00:26.4]} 37... Kg7 {[%clk 0:00:34.6]} 38. Ra7 {[%clk 0:00:24]} 38... Kh6
{[%clk 0:00:32.1]} 39. Qc3 {[%clk 0:00:22.5]} 39... Kg7 {[%clk 0:00:31.4]} 40.
Qa5 {[%clk 0:00:22.3]} 40... c6 {[%clk 0:00:31.3]} 41. dxc6 {[%clk 0:00:21.1]}
41... d5 {[%clk 0:00:29.7]} 42. cxd5 {[%clk 0:00:19.1]} 42... Kh6 {[%clk
0:00:29.6]} 43. c7 {[%clk 0:00:18.8]} 43... Rf8 {[%clk 0:00:22.1]} 44. Ra8
{[%clk 0:00:18.1]} 44... f5 {[%clk 0:00:18.5]} 45. Rxf8 {[%clk 0:00:16.5]} 45...
f4+ {[%clk 0:00:18.9]} 46. Kf3 {[%clk 0:00:15.4]} 46... Kg7 {[%clk 0:00:18.9]}
47. Qa8 {[%clk 0:00:14.2]} 47... Kh6 {[%clk 0:00:19.4]} 48. Rh8+ {[%clk
0:00:13.1]} 48... Kg7 {[%clk 0:00:19.7]} 49. Qf8# {[%clk 0:00:12.7]} 1-0

[Event "Early-Titled-Tuesday-Blitz-July-09-2024"]
[Site "Chess.com"]
[Date "2024.07.09"]
[Round "8"]
[White "Pachonpower"]
[Black "yonaltimur"]
[Result "0-1"]
[WhiteElo "2452"]
[BlackElo "2276"]
[TimeControl "180+1"]
[EndTime "9:29:53 PDT"]
[Termination "yonaltimur won by checkmate"]

1. d4 {[%clk 0:03:00.9]} 1... d5 {[%clk 0:02:58.4]} 2. Nf3 {[%clk 0:03:01.1]}
2... Nf6 {[%clk 0:02:57.6]} 3. e3 {[%clk 0:03:01.4]} 3... e6 {[%clk 0:02:57.2]}
4. Nbd2 {[%clk 0:03:01.8]} 4... Bd6 {[%clk 0:02:55.7]} 5. Bd3 {[%clk 0:03:01.6]}
5... O-O {[%clk 0:02:55.2]} 6. O-O {[%clk 0:03:01.7]} 6... b6 {[%clk 0:02:49.9]}
7. Qe2 {[%clk 0:03:01.3]} 7... c5 {[%clk 0:02:49.6]} 8. c3 {[%clk 0:03:01.2]}
8... Bb7 {[%clk 0:02:50.1]} 9. b3 {[%clk 0:03:00.7]} 9... Nbd7 {[%clk
0:02:50.4]} 10. Bb2 {[%clk 0:03:01.1]} 10... Ne4 {[%clk 0:02:50.8]} 11. Rac1
{[%clk 0:03:00.9]} 11... Ndf6 {[%clk 0:02:50.9]} 12. c4 {[%clk 0:02:59.6]} 12...
Rc8 {[%clk 0:02:50.7]} 13. Ne5 {[%clk 0:02:59.4]} 13... Qe7 {[%clk 0:02:49]} 14.
Nxe4 {[%clk 0:02:59.6]} 14... Nxe4 {[%clk 0:02:45]} 15. f3 {[%clk 0:02:58.4]}
15... Nf6 {[%clk 0:02:44.1]} 16. Bb1 {[%clk 0:02:52.5]} 16... Rfd8 {[%clk
0:02:41]} 17. Rfe1 {[%clk 0:02:51.4]} 17... dxc4 {[%clk 0:02:23.6]} 18. Nxc4
{[%clk 0:02:49.8]} 18... cxd4 {[%clk 0:02:17.1]} 19. Nxd6 {[%clk 0:02:45.2]}
19... Qxd6 {[%clk 0:02:13]} 20. Bxd4 {[%clk 0:02:42]} 20... e5 {[%clk
0:02:12.3]} 21. Bc3 {[%clk 0:02:24.1]} 21... Nd5 {[%clk 0:01:58.3]} 22. Bb2
{[%clk 0:02:20]} 22... g6 {[%clk 0:01:33.9]} 23. Be4 {[%clk 0:02:13.7]} 23... f5
{[%clk 0:01:20.3]} 24. Bb1 {[%clk 0:02:08.7]} 24... Nf6 {[%clk 0:01:20.3]} 25.
Red1 {[%clk 0:01:58.4]} 25... Rxc1 {[%clk 0:01:16.7]} 26. Rxc1 {[%clk
0:01:58.5]} 26... Bd5 {[%clk 0:00:55.6]} 27. Rd1 {[%clk 0:01:54.8]} 27... Qc7
{[%clk 0:00:48.5]} 28. Bd3 {[%clk 0:01:43.2]} 28... Kf7 {[%clk 0:00:44.9]} 29.
e4 {[%clk 0:01:39.2]} 29... fxe4 {[%clk 0:00:43.9]} 30. fxe4 {[%clk 0:01:40.1]}
30... Bxe4 {[%clk 0:00:11.2]} 31. Bxe4 {[%clk 0:01:39.2]} 31... Rxd1+ {[%clk
0:00:11.9]} 32. Qxd1 {[%clk 0:01:39]} 32... Qc5+ {[%clk 0:00:12.5]} 33. Kh1
{[%clk 0:01:37]} 33... Nxe4 {[%clk 0:00:12.6]} 34. Qf3+ {[%clk 0:01:37.4]} 34...
Nf6 {[%clk 0:00:12.3]} 35. g4 {[%clk 0:01:35.9]} 35... h6 {[%clk 0:00:10.6]} 36.
h4 {[%clk 0:01:34.1]} 36... Ke6 {[%clk 0:00:07.7]} 37. g5 {[%clk 0:01:33.5]}
37... hxg5 {[%clk 0:00:07.7]} 38. hxg5 {[%clk 0:01:33.8]} 38... Qd5 {[%clk
0:00:05.2]} 39. Kg2 {[%clk 0:01:26.5]} 39... Qxf3+ {[%clk 0:00:04.2]} 40. Kxf3
{[%clk 0:01:27.4]} 40... Nd7 {[%clk 0:00:03.4]} 41. Ke4 {[%clk 0:01:26.8]} 41...
Nc5+ {[%clk 0:00:03.7]} 42. Ke3 {[%clk 0:01:27.2]} 42... Kf5 {[%clk 0:00:04.2]}
43. b4 {[%clk 0:01:25.3]} 43... Ne6 {[%clk 0:00:04.1]} 44. a4 {[%clk 0:01:23.7]}
44... Nxg5 {[%clk 0:00:03.9]} 45. a5 {[%clk 0:01:22.8]} 45... bxa5 {[%clk
0:00:04.3]} 46. bxa5 {[%clk 0:01:23.7]} 46... a6 {[%clk 0:00:04.9]} 47. Ba3
{[%clk 0:01:24.1]} 47... Ne6 {[%clk 0:00:04.8]} 48. Bd6 {[%clk 0:01:24]} 48...
g5 {[%clk 0:00:04.8]} 49. Kf3 {[%clk 0:01:23.9]} 49... g4+ {[%clk 0:00:05.2]}
50. Ke3 {[%clk 0:01:23.3]} 50... Nd4 {[%clk 0:00:03.1]} 51. Bc7 {[%clk
0:01:19.7]} 51... Nc6 {[%clk 0:00:03.3]} 52. Kf2 {[%clk 0:01:18.6]} 52... Kf4
{[%clk 0:00:02.2]} 53. Kg2 {[%clk 0:01:18.3]} 53... g3 {[%clk 0:00:02.8]} 54.
Bd6 {[%clk 0:01:15.7]} 54... Nxa5 {[%clk 0:00:02.4]} 55. Bb4 {[%clk 0:01:13.4]}
55... Nc4 {[%clk 0:00:01.6]} 56. Be7 {[%clk 0:01:11.4]} 56... a5 {[%clk
0:00:01]} 57. Bh4 {[%clk 0:01:11.8]} 57... Ke4 {[%clk 0:00:01.7]} 58. Bxg3
{[%clk 0:01:11.7]} 58... Kd3 {[%clk 0:00:02.6]} 59. Be1 {[%clk 0:01:08.8]} 59...
a4 {[%clk 0:00:03.1]} 60. Bb4 {[%clk 0:01:09.4]} 60... a3 {[%clk 0:00:03.7]} 61.
Bxa3 {[%clk 0:01:10]} 61... Nxa3 {[%clk 0:00:04.6]} 62. Kf3 {[%clk 0:01:10.5]}
62... Nc4 {[%clk 0:00:05.3]} 63. Kf2 {[%clk 0:01:11.4]} 63... Ke4 {[%clk
0:00:05.7]} 64. Ke1 {[%clk 0:01:12.1]} 64... Kf4 {[%clk 0:00:06.6]} 65. Ke2
{[%clk 0:01:13]} 65... e4 {[%clk 0:00:07.5]} 66. Kf2 {[%clk 0:01:13.2]} 66...
e3+ {[%clk 0:00:07.9]} 67. Ke2 {[%clk 0:01:14.1]} 67... Ke4 {[%clk 0:00:08.8]}
68. Kf1 {[%clk 0:01:14.4]} 68... Kf3 {[%clk 0:00:09.7]} 69. Ke1 {[%clk
0:01:14.9]} 69... Ne5 {[%clk 0:00:10.5]} 70. Kf1 {[%clk 0:01:15.8]} 70... e2+
{[%clk 0:00:11]} 71. Ke1 {[%clk 0:01:16.7]} 71... Nd3+ {[%clk 0:00:11.7]} 72.
Kd2 {[%clk 0:01:17.2]} 72... e1=Q+ {[%clk 0:00:12.3]} 73. Kxd3 {[%clk
0:01:18.1]} 73... Qe3+ {[%clk 0:00:13.2]} 74. Kc4 {[%clk 0:01:18.6]} 74... Ke2
{[%clk 0:00:13.8]} 75. Kd5 {[%clk 0:01:19.5]} 75... Kd2 {[%clk 0:00:14.7]} 76.
Kc6 {[%clk 0:01:20.4]} 76... Kd3 {[%clk 0:00:15.5]} 77. Kc7 {[%clk 0:01:21.3]}
77... Qd4 {[%clk 0:00:15.9]} 78. Kc6 {[%clk 0:01:21.8]} 78... Kc4 {[%clk
0:00:16.3]} 79. Kc7 {[%clk 0:01:22.7]} 79... Qd5 {[%clk 0:00:17.2]} 80. Kb6
{[%clk 0:01:23]} 80... Kb4 {[%clk 0:00:17.5]} 81. Kc7 {[%clk 0:01:23.9]} 81...
Kb5 {[%clk 0:00:17.6]} 82. Kb8 {[%clk 0:01:23.9]} 82... Kb6 {[%clk 0:00:17.8]}
83. Kc8 {[%clk 0:01:24.1]} 83... Qf7 {[%clk 0:00:16.9]} 84. Kb8 {[%clk 0:01:25]}
84... Qb7# {[%clk 0:00:16.9]} 0-1

[Event "Early-Titled-Tuesday-Blitz-July-09-2024"]
[Site "Chess.com"]
[Date "2024.07.09"]
[Round "8"]
[White "howitzer14"]
[Black "cmunda"]
[Result "1-0"]
[WhiteElo "3028"]
[BlackElo "2099"]
[TimeControl "180+1"]
[EndTime "9:29:55 PDT"]
[Termination "howitzer14 won by checkmate"]

1. c4 {[%clk 0:02:58.2]} 1... e6 {[%clk 0:02:58.9]} 2. Nc3 {[%clk 0:02:55.9]}
2... b6 {[%clk 0:02:59.1]} 3. e4 {[%clk 0:02:53.5]} 3... Bb4 {[%clk 0:02:58.9]}
4. Nge2 {[%clk 0:02:52.5]} 4... Bb7 {[%clk 0:02:59.1]} 5. a3 {[%clk 0:02:53]}
5... Bxc3 {[%clk 0:02:59.1]} 6. Nxc3 {[%clk 0:02:53.9]} 6... Ne7 {[%clk
0:02:59.9]} 7. b4 {[%clk 0:01:57.3]} 7... O-O {[%clk 0:02:58.5]} 8. Bb2 {[%clk
0:01:57.7]} 8... f5 {[%clk 0:02:57.2]} 9. d3 {[%clk 0:01:56.6]} 9... Qe8 {[%clk
0:02:45]} 10. Be2 {[%clk 0:01:48.4]} 10... Qg6 {[%clk 0:02:44.5]} 11. O-O {[%clk
0:01:48.7]} 11... d6 {[%clk 0:02:26.1]} 12. f3 {[%clk 0:01:43.9]} 12... a6
{[%clk 0:02:25.8]} 13. Qe1 {[%clk 0:01:40.9]} 13... Nd7 {[%clk 0:02:24.3]} 14.
Qg3 {[%clk 0:01:40.1]} 14... f4 {[%clk 0:02:20.9]} 15. Qxg6 {[%clk 0:01:31.7]}
15... Nxg6 {[%clk 0:02:20.9]} 16. d4 {[%clk 0:01:32.6]} 16... e5 {[%clk
0:02:08.9]} 17. d5 {[%clk 0:01:27.7]} 17... a5 {[%clk 0:02:08.1]} 18. Kf2 {[%clk
0:01:20.6]} 18... axb4 {[%clk 0:02:05.5]} 19. axb4 {[%clk 0:01:21.5]} 19... c6
{[%clk 0:02:01.4]} 20. Rxa8 {[%clk 0:01:01.9]} 20... Rxa8 {[%clk 0:02:00.2]} 21.
dxc6 {[%clk 0:01:02.3]} 21... Bxc6 {[%clk 0:02:00.3]} 22. Rd1 {[%clk 0:01:03.2]}
22... Ngf8 {[%clk 0:00:40]} 23. Rxd6 {[%clk 0:01:02.4]} 23... Ba4 {[%clk
0:00:40.3]} 24. c5 {[%clk 0:00:11]} 24... bxc5 {[%clk 0:00:40]} 25. Bc4+ {[%clk
0:00:11.3]} 25... Kh8 {[%clk 0:00:40.2]} 26. b5 {[%clk 0:00:11.9]} 26... h6
{[%clk 0:00:15.5]} 27. Ke2 {[%clk 0:00:11.6]} 27... Ra5 {[%clk 0:00:12.5]} 28.
Kd2 {[%clk 0:00:10]} 28... Kh7 {[%clk 0:00:03.4]} 29. h4 {[%clk 0:00:09.6]}
29... Nf6 {[%clk 0:00:02.4]} 30. Ra6 {[%clk 0:00:08.9]} 30... Rxa6 {[%clk
0:00:02.2]} 31. bxa6 {[%clk 0:00:09.8]} 31... Bc6 {[%clk 0:00:03]} 32. Nd5
{[%clk 0:00:03.6]} 32... Ng6 {[%clk 0:00:03.9]} 33. Nxf6+ {[%clk 0:00:02.1]}
33... gxf6 {[%clk 0:00:04.8]} 34. a7 {[%clk 0:00:03]} 34... Ba8 {[%clk
0:00:04.8]} 35. Ba3 {[%clk 0:00:03.6]} 35... Nxh4 {[%clk 0:00:04.9]} 36. Bxc5
{[%clk 0:00:03.5]} 36... Nxg2 {[%clk 0:00:05.8]} 37. Bd5 {[%clk 0:00:04]} 37...
Ne3 {[%clk 0:00:06.7]} 38. Bxa8 {[%clk 0:00:04.1]} 38... Nc4+ {[%clk 0:00:06.9]}
39. Kc3 {[%clk 0:00:04.3]} 39... Nd2 {[%clk 0:00:06.3]} 40. Bd5 {[%clk
0:00:05.2]} 40... Nxf3 {[%clk 0:00:06.7]} 41. a8=Q {[%clk 0:00:05.7]} 41... Nd4
{[%clk 0:00:07.6]} 42. Qg8# {[%clk 0:00:06.2]} 1-0

[Event "Early-Titled-Tuesday-Blitz-July-09-2024"]
[Site "Chess.com"]
[Date "2024.07.09"]
[Round "8"]
[White "Aslanov_Umid"]
[Black "Arysya"]
[Result "0-1"]
[WhiteElo "2646"]
[BlackElo "2892"]
[TimeControl "180+1"]
[EndTime "9:29:58 PDT"]
[Termination "Arysya won by resignation"]

1. e4 {[%clk 0:03:00.9]} 1... c5 {[%clk 0:03:00.2]} 2. Nf3 {[%clk 0:03:01.3]}
2... e6 {[%clk 0:02:59.6]} 3. d4 {[%clk 0:03:01.6]} 3... cxd4 {[%clk 0:03:00.5]}
4. Qxd4 {[%clk 0:03:01.6]} 4... a6 {[%clk 0:02:52.2]} 5. Be2 {[%clk 0:03:01.4]}
5... b5 {[%clk 0:02:51.8]} 6. O-O {[%clk 0:03:01.3]} 6... Nc6 {[%clk 0:02:50.9]}
7. Qe3 {[%clk 0:03:00.6]} 7... Nf6 {[%clk 0:02:49]} 8. h3 {[%clk 0:02:54.7]}
8... Qc7 {[%clk 0:02:47.2]} 9. Rd1 {[%clk 0:02:51.6]} 9... Nb4 {[%clk
0:02:41.7]} 10. Na3 {[%clk 0:02:50.2]} 10... Bc5 {[%clk 0:02:37.5]} 11. Qg5
{[%clk 0:02:32.8]} 11... Bxf2+ {[%clk 0:02:09]} 12. Kf1 {[%clk 0:02:29.2]} 12...
Qg3 {[%clk 0:02:09.2]} 13. e5 {[%clk 0:02:06.2]} 13... Nfd5 {[%clk 0:02:04.1]}
14. c3 {[%clk 0:01:59.2]} 14... Nc6 {[%clk 0:01:56.5]} 15. c4 {[%clk 0:01:41.4]}
15... bxc4 {[%clk 0:01:51.1]} 16. Nxc4 {[%clk 0:01:41.6]} 16... O-O {[%clk
0:01:42]} 17. Nd6 {[%clk 0:01:33.9]} 17... Qxg5 {[%clk 0:01:28.9]} 18. Bxg5
{[%clk 0:01:32.2]} 18... Bg3 {[%clk 0:00:51.2]} 19. Bc4 {[%clk 0:01:21.3]} 19...
Nb6 {[%clk 0:00:48.6]} 20. Bb3 {[%clk 0:01:21.2]} 20... a5 {[%clk 0:00:40.7]}
21. a4 {[%clk 0:01:17]} 21... Ba6+ {[%clk 0:00:39]} 22. Kg1 {[%clk 0:01:16.6]}
22... Nxe5 {[%clk 0:00:38.8]} 23. Nxe5 {[%clk 0:01:14.7]} 23... Bxe5 {[%clk
0:00:39.7]} 24. Be7 {[%clk 0:01:14.1]} 24... Rfb8 {[%clk 0:00:39.2]} 25. Rac1
{[%clk 0:01:14.8]} 25... Bxb2 {[%clk 0:00:29.3]} 26. Rc7 {[%clk 0:01:10.2]}
26... Be5 {[%clk 0:00:28.1]} 27. Re1 {[%clk 0:01:06]} 27... Nc8 {[%clk
0:00:24.7]} 28. Rxe5 {[%clk 0:00:49.2]} 28... Nxe7 {[%clk 0:00:25.2]} 29. Rxa5
{[%clk 0:00:44.3]} 29... Rxb3 {[%clk 0:00:20.3]} 30. Rxd7 {[%clk 0:00:44.7]}
30... Nc6 {[%clk 0:00:20.8]} 31. Rc5 {[%clk 0:00:43.2]} 31... Rb1+ {[%clk
0:00:12.1]} 32. Kh2 {[%clk 0:00:43.1]} 32... Nd4 {[%clk 0:00:12.6]} 33. Nxf7
{[%clk 0:00:35.9]} 33... Rb7 {[%clk 0:00:09.6]} 34. Rd8+ {[%clk 0:00:20.2]}
34... Rxd8 {[%clk 0:00:07.5]} 35. Nxd8 {[%clk 0:00:21.1]} 35... Rd7 {[%clk
0:00:08]} 36. Ra5 {[%clk 0:00:17.7]} 36... Bc8 {[%clk 0:00:08.5]} 37. Ra8 {[%clk
0:00:13.8]} 37... Rxd8 {[%clk 0:00:09]} 38. a5 {[%clk 0:00:14.7]} 38... Nc6
{[%clk 0:00:07.9]} 39. a6 {[%clk 0:00:12.4]} 39... Kf8 {[%clk 0:00:08]} 40. a7
{[%clk 0:00:11.3]} 40... Bb7 {[%clk 0:00:06.8]} 41. Rxd8+ {[%clk 0:00:10.6]}
41... Nxd8 {[%clk 0:00:07.7]} 42. Kg3 {[%clk 0:00:11.2]} 42... Nc6 {[%clk
0:00:07.7]} 43. Kf4 {[%clk 0:00:12.1]} 43... Nxa7 {[%clk 0:00:08.3]} 44. g4
{[%clk 0:00:13]} 44... Ke7 {[%clk 0:00:08.6]} 45. Ke5 {[%clk 0:00:13.9]} 45...
Nc6+ {[%clk 0:00:09.1]} 46. Kf4 {[%clk 0:00:14.4]} 46... e5+ {[%clk 0:00:09.3]}
47. Kf5 {[%clk 0:00:14.4]} 47... Kf7 {[%clk 0:00:10]} 48. g5 {[%clk 0:00:15]}
48... Bc8+ {[%clk 0:00:10.4]} 49. Ke4 {[%clk 0:00:15.5]} 49... Ke6 {[%clk
0:00:11]} 0-1